bitfinex/quotes_SOLUSD_20240614
["timestamp","ask_amount","ask_price","bid_price","bid_amount"]
[1718386777893,7.7836,142.61,142.58,7.7849]
[1718386778305,15.567,142.61,142.58,2.5949]
[1718386778486,7.7836,142.61,142.58,7.7849]
[1718386778681,15.567,142.61,142.58,7.7849]
[1718386779709,25.9449,142.61,142.58,7.7849]
[1718386779885,7.7836,142.61,142.58,7.7849]
[1718386780078,25.9449,142.61,142.58,2.5949]
[1718386780285,2.5946,142.6,142.57,25.9506]
[1718386780507,15.5671,142.61,142.58,7.7849]
[1718386780708,2.5946,142.6,142.58,2.5949]
[1718386780912,2.5946,142.6,142.53,15.8111]
[1718386780913,2.5949,142.59,142.56,23.3578]
[1718386781290,25.947,142.6,142.57,7.7855]
[1718386781807,2.5948,142.59,142.57,2.5951]
[1718386782586,25.9471,142.6,142.57,7.7854]
[1718386783201,2.5948,142.59,142.57,2.5951]
[1718386783409,25.9471,142.6,142.57,7.7855]
[1718386784393,23.3512,142.61,142.58,2.5949]
[1718386784611,2.5946,142.61,142.59,2.5948]
[1718386785503,2.5946,142.61,142.58,25.9498]
[1718386785706,15.567,142.61,142.58,7.7848]
[1718386786113,25.9449,142.61,142.58,7.7848]
[1718386786505,25.9437,142.62,142.55,5.1909]
[1718386786700,7.7831,142.62,142.6,7.7837]
[1718386787011,22.89794392,142.64,142.6,18.1621]
[1718386787012,25.9506,142.64,142.6,18.1621]
[1718386787218,23.3474,142.63,142.6,23.3511]
[1718386787393,15.5649,142.63,142.61,2.5944]
[1718386787591,2.5945,142.61,142.59,15.5686]
[1718386787790,7.7835,142.61,142.59,7.7841]
[1718386788307,7.7832,142.62,142.6,2.5946]
[1718386788613,15.5661,142.62,142.6,2.5946]
[1718386788817,25.945,142.61,142.59,2.5947]
[1718386788984,25.945,142.61,142.6,2.5946]
[1718386788985,2.5945,142.61,142.6,2.5946]
[1718386789310,2.5943,142.62,142.6,15.5677]
[1718386789509,2.5943,142.62,142.6,25.9463]
[1718386789696,25.9417,142.63,142.61,2.5944]
[1718386789901,7.7826,142.63,142.61,2.5944]
[1718386790105,2.5943,142.62,142.6,25.9462]
[1718386790298,7.7826,142.63,142.61,2.5944]
[1718386790492,2.5943,142.62,142.6,25.9462]
[1718386790688,19.1393,142.65,142.63,2.594]
[1718386791020,19.1393,142.65,142.58,10.09]
[1718386791021,7.7818,142.64,142.62,7.7824]
[1718386791319,25.9393,142.64,142.62,2.5941]
[1718386791515,2.5939,142.64,142.62,15.5653]
[1718386791720,7.7815,142.65,142.63,7.7822]
[1718386791924,15.5627,142.65,142.63,2.594]
[1718386792621,2.5939,142.64,142.63,2.594]
[1718386792807,23.344,142.65,142.63,2.594]
[1718386792995,7.7807,142.66,142.64,7.7816]
[1718386793203,7.7813,142.65,142.63,2.594]
[1718386793413,7.7813,142.65,142.63,7.7822]
[1718386793715,7.7818,142.64,142.62,7.7824]
[1718386794108,2.5939,142.64,142.62,15.5653]
[1718386794315,7.7817,142.64,142.62,7.7824]
[1718386794624,7.7819,142.64,142.62,2.5942]
[1718386794803,7.7819,142.64,142.62,7.7827]
[1718386795599,25.9386,142.65,142.63,2.5941]
[1718386795914,2.5939,142.64,142.63,2.5941]
[1718386796116,2.5939,142.64,142.62,25.9424]
[1718386796313,25.9387,142.65,142.63,2.5941]
[1718386796513,23.3469,142.64,142.59,7.7843]
[1718386796699,7.32176832,142.67,142.61,2.5944]
[1718386796700,25.9423,142.63,142.61,2.5944]
[1718386797041,23.3481,142.63,142.6,23.3511]
[1718386797324,7.7825,142.63,142.61,7.7833]
[1718386797723,2.5942,142.63,142.61,7.7833]
[1718386797903,15.5648,142.63,142.61,2.5944]
[1718386798419,25.9415,142.63,142.61,2.5944]
[1718386798628,2.5943,142.62,142.6,25.946]
[1718386798825,25.9415,142.63,142.6,25.946]
[1718386799007,2.5943,142.62,142.6,25.946]
[1718386799329,7.7825,142.63,142.61,2.5944]
[1718386799630,23.3459,142.64,142.58,9.92]
[1718386799808,2.5941,142.63,142.61,15.5664]
[1718386800417,7.32176832,142.67,142.57,0.34]
[1718386800622,2.5939,142.64,142.62,7.7826]
[1718386800926,23.345,142.65,142.59,9.92]
[1718386801122,2.594,142.64,142.62,15.5655]
[1718386801323,7.7814,142.65,142.63,2.594]
[1718386801527,2.5939,142.64,142.62,2.5941]
[1718386801829,7.7819,142.64,142.62,2.5942]
[1718386802012,2.594,142.64,142.62,2.5942]
[1718386802208,18.157,142.65,142.62,23.3482]
[1718386802209,5.1877,142.65,142.62,23.3482]
[1718386802404,2.5939,142.65,142.63,7.7822]
[1718386802606,7.7808,142.66,142.64,2.5939]
[1718386802807,2.5938,142.65,142.63,15.5645]
[1718386803028,25.9361,142.66,142.64,2.5939]
[1718386803215,2.5936,142.66,142.64,7.7817]
[1718386803421,15.5625,142.65,142.63,2.594]
[1718386803607,7.7813,142.65,142.63,2.594]
[1718386803808,15.5626,142.65,142.63,2.594]
[1718386804010,23.30104361,142.68,142.59,15.3613]
[1718386804219,12.9681,142.66,142.63,7.7819]
[1718386804416,23.30104361,142.68,142.59,15.1913]
[1718386804630,7.7819,142.64,142.62,2.5942]
[1718386804927,25.9397,142.64,142.61,23.3495]
[1718386805121,7.782,142.64,142.62,2.5942]
[1718386805436,7.7813,142.65,142.63,2.594]
[1718386805631,2.5937,142.65,142.63,25.9406]
[1718386805841,25.9361,142.66,142.63,25.9405]
[1718386806008,25.9361,142.66,142.59,15.1913]
[1718386806009,11.2235778,142.7,142.65,7.7812]
[1718386806210,0.8514778,142.7,142.69,2.593]
[1718386806424,8.6302778,142.7,142.65,9.92]
[1718386806644,8.6302778,142.7,142.62,0.51]
[1718386806645,0.8514778,142.7,142.69,2.593]
[1718386806851,3.4443778,142.7,142.68,7.7793]
[1718386807055,0.8514778,142.7,142.69,7.779]
[1718386807371,0.8514778,142.7,142.69,2.593]
[1718386807531,0.8514778,142.7,142.69,25.9302]
[1718386808438,0.8514778,142.7,142.69,7.779]
[1718386808667,0.8514778,142.7,142.69,2.593]
[1718386808879,6.0373778,142.7,142.66,7.7804]
[1718386809041,0.8514778,142.7,142.69,25.9302]
[1718386810242,0.8514778,142.7,142.69,2.593]
[1718386810464,12.9654,142.69,142.66,2.5934]
[1718386810643,7.7793,142.69,142.66,23.3416]
[1718386810843,2.5932,142.68,142.66,7.7802]
[1718386811048,7.7793,142.69,142.67,2.5933]
[1718386811248,25.9305,142.69,142.66,18.1544]
[1718386811444,26.7809778,142.7,142.67,15.5601]
[1718386811729,2.593,142.69,142.67,7.78]
[1718386811933,7.779,142.69,142.67,2.5933]
[1718386812134,7.779,142.69,142.64,6.6444]
[1718386812135,2.5934,142.67,142.64,23.3447]
[1718386812437,21.9672778,142.7,142.58,15.5925]
[1718386812656,2.5944,142.62,142.59,23.353]
[1718386812858,7.783,142.62,142.59,7.7842]
[1718386813046,15.5632,142.65,142.58,15.5925]
[1718386813361,7.7808,142.66,142.63,2.594]
[1718386813567,2.5939,142.64,142.58,15.5925]
[1718386813736,25.9416,142.63,142.6,2.5946]
[1718386814081,25.9416,142.63,142.59,23.3527]
[1718386814082,2.5943,142.62,142.59,25.9475]
[1718386814387,2.5938,142.65,142.62,7.7826]
[1718386814532,7.7813,142.65,142.62,7.7826]
[1718386814736,2.5939,142.64,142.62,2.5941]
[1718386814938,25.9378,142.65,142.62,2.5941]
[1718386815234,15.5627,142.65,142.62,2.5941]
[1718386815437,7.7814,142.65,142.62,2.5941]
[1718386815667,2.5939,142.65,142.62,23.3484]
[1718386815838,5.1869,142.67,142.64,2.5939]
[1718386816038,20.7477,142.67,142.64,2.5939]
[1718386816239,7.7803,142.67,142.64,2.5938]
[1718386816462,25.934,142.67,142.64,2.5939]
[1718386816765,7.7807,142.66,142.63,7.7818]
[1718386816943,23.3405,142.67,142.63,23.3461]
[1718386817143,7.7807,142.66,142.63,7.7819]
[1718386817349,2.5936,142.66,142.63,15.5642]
[1718386817548,23.3407,142.67,142.63,5.1879]
[1718386817737,15.5607,142.67,142.64,2.5938]
[1718386817937,2.5935,142.66,142.63,18.158]
[1718386818137,2.5937,142.65,142.62,25.9417]
[1718386818339,7.7808,142.66,142.63,2.594]
[1718386819051,2.5937,142.65,142.62,25.9417]
[1718386819382,12.9708,142.63,142.59,23.3532]
[1718386819560,7.783,142.62,142.59,7.7843]
[1718386819742,7.783,142.62,142.59,2.5947]
[1718386820051,23.348,142.63,142.59,23.3534]
[1718386820251,2.5943,142.62,142.59,7.7842]
[1718386820559,2.5943,142.62,142.59,15.5688]
[1718386820735,2.5943,142.62,142.59,25.9482]
[1718386820941,23.346,142.64,142.6,23.3515]
[1718386821135,25.94,142.64,142.61,2.5944]
[1718386821358,7.7821,142.64,142.61,7.7833]
[1718386821571,29.23955453,142.7,142.58,15.5925]
[1718386821957,29.23955453,142.7,142.59,0.68]
[1718386822467,15.5607,142.67,142.64,2.5938]
[1718386822763,15.5614,142.66,142.63,2.594]
[1718386823063,7.7824,142.63,142.6,5.1892]
[1718386823264,23.3471,142.63,142.6,2.5945]
[1718386823472,2.5947,142.6,142.58,15.5925]
[1718386823660,0.17,142.69,142.58,31.1623]
[1718386823661,2.5945,142.61,142.58,31.1623]
[1718386823855,2.5945,142.61,142.58,31.1622]
[1718386824060,2.5945,142.61,142.59,2.5948]
[1718386824363,2.5944,142.62,142.6,2.5946]
[1718386824566,5.1894,142.6,142.58,15.5925]
[1718386824774,0.17,142.69,142.58,12.9747]
[1718386824775,2.5945,142.61,142.58,12.9747]
[1718386824945,29.23955453,142.7,142.61,7.7833]
[1718386825146,29.23955453,142.7,142.56,6.2786]
[1718386825147,2.5936,142.66,142.63,7.782]
[1718386825356,15.5614,142.66,142.63,7.7821]
[1718386825560,7.7807,142.66,142.63,23.3468]
[1718386825843,12.9682,142.66,142.62,10.3769]
[1718386826065,7.7813,142.65,142.62,15.5654]
[1718386826467,15.5626,142.65,142.62,7.7826]
[1718386827043,2.5938,142.65,142.62,25.9424]
[1718386827272,7.7813,142.65,142.62,25.9424]
[1718386827878,2.5939,142.64,142.62,2.5941]
[1718386828046,25.9378,142.65,142.62,7.7826]
[1718386828374,2.5939,142.64,142.62,2.5941]
[1718386828570,12.9698,142.64,142.61,2.5944]
[1718386828870,12.9698,142.64,142.6,18.1617]
[1718386828871,15.5647,142.63,142.6,18.1617]
[1718386829069,2.5943,142.62,142.59,15.5686]
[1718386829246,100.17,142.69,142.58,2.5948]
[1718386829451,23.3493,142.62,142.59,2.5948]
[1718386829655,23.349,142.62,142.59,2.5946]
[1718386829854,7.7832,142.62,142.59,15.5686]
[1718386830761,15.5661,142.62,142.59,15.5686]
[1718386831064,5.188,142.64,142.61,2.5944]
[1718386831298,5.73777046,142.72,142.62,7.7827]
[1718386831480,5.73777046,142.72,142.56,6.2786]
[1718386831481,2.5934,142.67,142.56,27.3786]
[1718386831770,7.7796,142.68,142.63,9.92]
[1718386831967,15.5592,142.68,142.65,7.781]
[1718386832172,2.5934,142.67,142.65,2.5936]
[1718386832346,2.5934,142.67,142.63,7.7819]
[1718386832347,15.5616,142.66,142.63,7.7819]
[1718386832547,2.5937,142.65,142.63,2.5939]
[1718386833374,25.936,142.66,142.63,7.782]
[1718386834391,7.7809,142.66,142.63,15.5643]
[1718386834589,7.7809,142.66,142.63,25.9407]
[1718386834946,2.5935,142.67,142.65,2.5937]
[1718386835186,2.5933,142.68,142.65,23.343]
[1718386835357,25.9306,142.69,142.66,7.7806]
[1718386835556,25.9306,142.69,142.61,15.9747]
[1718386835557,0.8514778,142.7,142.69,25.9302]
[1718386835771,0.8514778,142.7,142.69,2.593]
[1718386835948,0.8514778,142.7,142.68,23.3378]
[1718386836147,0.8514778,142.7,142.69,7.779]
[1718386836354,0.8514778,142.7,142.69,2.593]
[1718386836677,0.8514778,142.7,142.68,23.3378]
[1718386836885,0.8514778,142.7,142.69,2.593]
[1718386837501,0.8514778,142.7,142.68,23.3379]
[1718386837680,0.8514778,142.7,142.68,15.5587]
[1718386837995,0.8514778,142.7,142.68,7.7792]
[1718386838293,0.8514778,142.7,142.69,2.593]
[1718386838591,0.8514778,142.7,142.68,7.7792]
[1718386838792,0.8514778,142.7,142.68,7.7795]
[1718386839161,2.5932,142.68,142.66,2.5935]
[1718386839367,23.3378,142.69,142.66,2.5935]
[1718386839873,2.5933,142.68,142.66,2.5935]
[1718386840070,25.9313,142.69,142.66,2.5935]
[1718386840272,15.5585,142.69,142.66,7.7806]
[1718386840526,7.7794,142.69,142.66,7.7806]
[1718386840669,15.5585,142.69,142.66,7.7806]
[1718386840994,2.5932,142.68,142.65,23.3434]
[1718386841178,23.3392,142.68,142.65,2.5936]
[1718386841375,0.8514778,142.7,142.62,6.3514]
[1718386841690,7.7807,142.66,142.63,7.782]
[1718386841901,23.3423,142.66,142.63,2.594]
[1718386842326,15.5617,142.66,142.63,7.7822]
[1718386842508,2.5941,142.63,142.61,2.5944]
[1718386842829,2.5941,142.63,142.6,25.9453]
[1718386843113,2.5941,142.63,142.6,23.3508]
[1718386843315,2.5941,142.63,142.6,15.5676]
[1718386843482,25.94,142.64,142.61,2.5944]
[1718386843683,25.94,142.64,142.6,23.3516]
[1718386843684,12.9707,142.63,142.6,2.5946]
[1718386843902,7.7825,142.63,142.6,7.7839]
[1718386844498,2.5942,142.63,142.61,2.5944]
[1718386844698,2.5942,142.63,142.6,25.9462]
[1718386845123,15.5649,142.63,142.6,2.5945]
[1718386845296,2.5942,142.63,142.6,15.5676]
[1718386845497,7.7824,142.63,142.6,7.7837]
[1718386845705,7.7829,142.62,142.59,7.7841]
[1718386845904,7.7827,142.63,142.6,7.7839]
[1718386846213,25.9403,142.64,142.61,2.5944]
[1718386846510,25.9414,142.63,142.6,2.5945]
[1718386847104,7.7846,142.59,142.55,5.1909]
[1718386847303,7.785,142.58,142.55,2.5954]
[1718386847490,7.785,142.58,142.55,7.7865]
[1718386847695,2.595,142.58,142.55,15.5732]
[1718386848109,7.7851,142.58,142.55,7.7865]
[1718386848306,7.7851,142.58,142.54,18.1695]
[1718386848307,2.5952,142.57,142.54,25.9564]
[1718386848713,25.9507,142.58,142.55,2.5955]
[1718386848914,25.9495,142.59,142.56,2.5953]
[1718386849112,23.3545,142.59,142.56,2.5953]
[1718386849420,2.5951,142.58,142.55,7.7865]
[1718386849719,2.595,142.58,142.55,23.3593]
[1718386849923,2.595,142.58,142.55,25.9547]
[1718386850094,2.5952,142.57,142.54,25.9562]
[1718386850297,7.7856,142.57,142.54,7.7868]
[1718386850604,18.1654,142.58,142.55,2.5955]
[1718386850605,7.7853,142.58,142.55,2.5955]
[1718386850814,7.7853,142.58,142.55,7.7866]
[1718386851215,2.5951,142.58,142.55,15.5732]
[1718386851412,2.5951,142.58,142.55,7.7866]
[1718386851607,23.3553,142.58,142.54,23.3611]
[1718386851923,7.7852,142.58,142.55,2.5955]
[1718386852126,18.1629,142.6,142.56,2.5952]
[1718386852307,2.5951,142.58,142.55,2.5955]
[1718386852512,2.5951,142.58,142.55,15.5732]
[1718386852714,10.3802,142.58,142.55,2.5955]
[1718386852929,25.9505,142.58,142.55,2.5955]
[1718386853124,25.9505,142.58,142.54,23.3607]
[1718386853125,23.3554,142.58,142.54,25.9563]
[1718386853307,23.3572,142.57,142.53,23.3628]
[1718386853504,7.7862,142.56,142.53,2.5958]
[1718386853930,7.7862,142.56,142.53,7.7876]
[1718386854128,25.954,142.56,142.52,25.9602]
[1718386854307,25.954,142.56,142.53,2.5958]
[1718386854510,2.5956,142.55,142.52,25.9602]
[1718386854710,0.17,142.6,142.49,15.7372]
[1718386855006,2.5958,142.54,142.51,7.7887]
[1718386855206,7.7874,142.54,142.51,2.5962]
[1718386855443,23.3609,142.55,142.51,5.1925]
[1718386855608,7.7862,142.56,142.53,2.5958]
[1718386855808,2.5956,142.55,142.52,15.5764]
[1718386856014,2.5959,142.54,142.51,2.5962]
[1718386856235,25.9561,142.55,142.52,2.5961]
[1718386856425,23.3619,142.54,142.5,5.1928]
[1718386856738,23.3619,142.54,142.5,2.5963]
[1718386856739,15.5755,142.53,142.5,2.5963]
[1718386856913,2.596,142.53,142.5,15.5787]
[1718386857114,15.5758,142.53,142.49,41.7027]
[1718386857325,23.3671,142.51,142.48,2.5968]
[1718386857534,23.3671,142.51,142.47,12.9849]
[1718386857535,2.5965,142.5,142.47,7.7907]
[1718386857832,15.5782,142.51,142.47,23.3728]
[1718386858131,23.3659,142.52,142.48,7.7903]
[1718386858337,2.5963,142.51,142.48,7.7903]
[1718386859514,2.5963,142.51,142.42,5.74420639]
[1718386859515,221.9372,142.55,142.39,16.3033]
[1718386859731,12.9843,142.48,142.44,2.5975]
[1718386860036,25.9688,142.48,142.44,2.5975]
[1718386860205,23.3718,142.48,142.44,2.5975]
[1718386860539,18.1782,142.48,142.44,7.7925]
[1718386860718,7.7911,142.47,142.43,7.7928]
[1718386861038,25.9705,142.47,142.43,7.7931]
[1718386861238,2.5976,142.44,142.4,5.1964]
[1718386861417,7.7924,142.45,142.41,7.7941]
[1718386861729,2.5975,142.45,142.42,2.5978]
[1718386861906,2.5975,142.45,142.41,23.3826]
[1718386862110,2.5974,142.45,142.42,2.5978]
[1718386862309,2.5974,142.45,142.41,25.9805]
[1718386862545,7.7922,142.45,142.41,7.7941]
[1718386862711,6.097,142.48,142.35,15.1329]
[1718386862916,23.3868,142.39,142.35,15.1329]
[1718386863111,7.7949,142.4,142.36,7.7969]
[1718386863311,25.9832,142.4,142.36,2.5989]
[1718386863539,16.1642,142.45,142.35,15.1329]
[1718386863719,16.1642,142.45,142.35,17.732]
[1718386864043,2.598,142.42,142.38,12.9931]
[1718386864211,2.598,142.42,142.35,15.1329]
[1718386864212,26.5542,142.45,142.35,15.1329]
[1718386864419,16.1642,142.45,142.35,15.1329]
[1718386864645,15.5878,142.42,142.38,2.5986]
[1718386864957,7.795,142.4,142.36,7.7966]
[1718386865435,7.795,142.4,142.36,2.5988]
[1718386865816,5.197,142.39,142.35,17.732]
[1718386866018,2.5985,142.39,142.36,2.599]
[1718386866211,25.9834,142.4,142.36,2.5989]
[1718386866430,2.5984,142.4,142.37,2.5988]
[1718386866636,23.3839,142.41,142.37,7.7964]
[1718386866637,7.7946,142.41,142.37,7.7964]
[1718386866848,25.9764,142.44,142.4,2.5983]
[1718386867047,25.9764,142.44,142.39,12.9921]
[1718386867048,7.7934,142.43,142.39,2.5984]
[1718386867245,2.5979,142.42,142.38,23.3871]
[1718386867446,7.7938,142.42,142.38,5.1971]
[1718386867635,5.1959,142.42,142.38,7.7959]
[1718386867833,12.9898,142.42,142.38,2.5986]
[1718386868027,2.5981,142.42,142.38,5.1973]
[1718386868245,2.5974,142.45,142.36,0.17]
[1718386868435,21.4148,142.48,142.37,5.1975]
[1718386868756,23.3809,142.43,142.39,2.5984]
[1718386868960,7.795,142.4,142.35,33.3263]
[1718386869174,2.5983,142.4,142.36,23.391]
[1718386869448,18.1888,142.4,142.35,28.1287]
[1718386869656,7.7956,142.39,142.35,22.9302]
[1718386869829,5.197,142.39,142.35,15.1329]
[1718386870030,2.5986,142.39,142.36,2.599]
[1718386870232,2.5986,142.39,142.35,38.5253]
[1718386870453,25.9821,142.41,142.37,7.7965]
[1718386870659,23.3817,142.42,142.38,2.5986]
[1718386870967,7.26806103,142.44,142.41,2.598]
[1718386870968,2.5976,142.44,142.41,2.598]
[1718386871168,29.2055,142.48,142.45,2.5973]
[1718386871378,29.2055,142.48,142.44,23.3778]
[1718386871379,7.7907,142.48,142.44,25.9752]
[1718386871534,7.7906,142.48,142.44,25.9748]
[1718386871730,7.7898,142.5,142.45,7.7921]
[1718386871928,16.6197,142.51,142.41,40.0733]
[1718386872132,16.6197,142.51,142.41,24.4851]
[1718386872133,5.1949,142.45,142.41,24.4851]
[1718386872368,7.7929,142.44,142.41,15.4615]
[1718386872555,7.7933,142.43,142.39,12.9922]
[1718386872760,7.793,142.44,142.4,7.7947]
[1718386872928,2.5977,142.44,142.4,15.5896]
[1718386873132,2.5975,142.45,142.42,2.5978]
[1718386873331,2.5978,142.43,142.4,2.5982]
[1718386873533,7.7934,142.43,142.39,23.386]
[1718386873839,15.5867,142.43,142.39,7.795]
[1718386874049,2.5979,142.42,142.39,2.5983]
[1718386874360,2.598,142.42,142.39,2.5984]
[1718386874559,2.5979,142.42,142.39,7.7952]
[1718386874759,23.3791,142.44,142.4,7.7948]
[1718386874963,2.5981,142.41,142.38,2.5986]
[1718386875160,7.794,142.42,142.38,12.9932]
[1718386875471,2.5979,142.43,142.4,2.5982]
[1718386875761,23.89233324,142.51,142.38,0.17]
[1718386875963,2.5969,142.48,142.44,12.9875]
[1718386876138,2.5967,142.49,142.41,6.3328]
[1718386876455,18.1768,142.49,142.44,23.3769]
[1718386876762,2.5972,142.47,142.43,23.3793]
[1718386876963,5.1945,142.46,142.42,7.7935]
[1718386877139,2.5976,142.44,142.4,18.1876]
[1718386877341,123.89233324,142.51,142.39,5.1968]
[1718386877342,5.1956,142.43,142.39,5.1968]
[1718386877645,2.5979,142.42,142.39,7.7952]
[1718386877837,25.9781,142.43,142.39,7.7952]
[1718386878073,2.5979,142.42,142.39,2.5984]
[1718386878263,7.7936,142.43,142.4,2.5982]
[1718386878435,2.598,142.42,142.39,2.5984]
[1718386878635,7.7939,142.42,142.38,25.9859]
[1718386878831,12.991,142.41,142.37,23.5039]
[1718386879155,2.5983,142.4,142.37,2.5987]
[1718386879453,7.7949,142.4,142.36,23.3902]
[1718386879753,7.7946,142.41,142.37,23.3895]
[1718386879958,23.3802,142.43,142.39,2.5983]
[1718386880131,2.5979,142.42,142.39,7.7951]
[1718386880334,6.1749,142.45,142.34,16.3782]
[1718386880660,2.5974,142.45,142.35,0.51]
[1718386880842,23.3769,142.45,142.41,2.598]
[1718386881159,2.598,142.42,142.39,2.5983]
[1718386881343,2.5976,142.44,142.41,2.5981]
[1718386881655,5.1951,142.44,142.41,2.5981]
[1718386881862,7.7927,142.44,142.4,23.3837]
[1718386882062,2.5976,142.44,142.41,2.598]
[1718386882566,15.5856,142.44,142.4,25.9817]
[1718386882941,13.28909971,142.49,142.42,18.1847]
[1718386882942,10.3882,142.47,142.42,18.1847]
[1718386883142,2.5972,142.46,142.43,2.5977]
[1718386883366,2.5975,142.44,142.41,7.7939]
[1718386883566,5.1946,142.46,142.42,5.1957]
[1718386883763,2.597,142.47,142.44,2.5975]
[1718386883946,2.5973,142.46,142.42,5.1957]
[1718386884141,2.5973,142.46,142.43,5.1954]
[1718386884463,2.5972,142.46,142.43,2.5976]
[1718386884647,30.65289971,142.49,142.45,2.5972]
[1718386884848,2.5969,142.48,142.45,2.5972]
[1718386885162,6.3222,142.52,142.44,5.195]
[1718386885359,2.597,142.47,142.44,2.5975]
[1718386885578,18.1795,142.47,142.43,23.3793]
[1718386885765,7.7909,142.48,142.4,16.665]
[1718386885766,2.5969,142.48,142.45,7.792]
[1718386885958,25.9672,142.49,142.45,15.5841]
[1718386886469,25.9672,142.49,142.45,25.9736]
[1718386886669,7.7905,142.48,142.44,25.9745]
[1718386886968,7.7905,142.48,142.45,2.5974]
[1718386887469,2.5968,142.48,142.45,2.5974]
[1718386887773,2.5968,142.48,142.45,7.7919]
[1718386888272,2.597,142.47,142.44,7.7923]
[1718386888457,10.3882,142.47,142.42,18.1848]
[1718386888651,7.7917,142.46,142.42,23.3805]
[1718386888846,2.5974,142.45,142.42,2.5979]
[1718386889164,2.5973,142.46,142.42,23.3811]
[1718386889464,5.1943,142.47,142.4,16.665]
[1718386889668,2.5972,142.46,142.43,7.793]
[1718386889875,2.5972,142.46,142.43,2.5976]
[1718386890365,25.971,142.47,142.43,15.5863]
[1718386890572,2.5971,142.47,142.44,2.5975]
[1718386890873,7.7912,142.47,142.44,2.5975]
[1718386891069,7.7912,142.47,142.43,25.9772]
[1718386891272,7.7912,142.47,142.44,2.5975]
[1718386891967,2.5971,142.47,142.44,2.5975]
[1718386892388,2.5968,142.48,142.45,2.5973]
[1718386892554,15.5811,142.48,142.44,25.9749]
[1718386892867,2.597,142.47,142.44,2.5974]
[1718386893573,2.5972,142.46,142.42,23.3804]
[1718386893879,25.9708,142.47,142.43,15.5863]
[1718386894050,25.9708,142.47,142.43,25.9773]
[1718386894671,10.3861,142.5,142.45,10.389]
[1718386894977,2.5969,142.48,142.45,2.5973]
[1718386895189,7.7906,142.48,142.45,2.5973]
[1718386895478,2.5969,142.48,142.45,7.792]
[1718386896360,25.9671,142.49,142.45,25.9737]
[1718386896672,2.5968,142.48,142.45,25.9737]
[1718386897086,13.60266082,142.52,142.43,18.184]
[1718386897248,2.597,142.47,142.44,7.7925]
[1718386897786,2.5972,142.46,142.43,25.9768]
[1718386897959,23.3733,142.47,142.43,25.9768]
[1718386898275,2.5976,142.44,142.41,25.9804]
[1718386898476,2.5976,142.44,142.41,7.7939]
[1718386898793,23.3771,142.45,142.41,7.7939]
[1718386899101,23.3784,142.44,142.4,42.6466]
[1718386899270,2.5976,142.44,142.41,2.598]
[1718386899471,15.5854,142.44,142.41,2.598]
[1718386899671,7.7927,142.44,142.41,2.598]
[1718386900176,7.7933,142.43,142.4,2.5982]
[1718386900382,2.598,142.42,142.39,2.5984]
[1718386900555,25.9798,142.42,142.38,25.9856]
[1718386900762,7.7945,142.41,142.38,2.5986]
[1718386900960,5.1967,142.4,142.36,37.7143]
[1718386901172,15.59,142.4,142.36,48.1097]
[1718386901370,6.5729,142.46,142.36,48.1097]
[1718386901373,12.9866,142.46,142.42,2.5978]
[1718386901579,7.7928,142.44,142.4,5.1965]
[1718386901874,10.3899,142.45,142.42,7.7936]
[1718386901875,2.5975,142.45,142.42,7.7936]
[1718386902075,2.5975,142.44,142.41,25.9804]